bitfinex/quotes_SOLUSD_20241101
["timestamp","ask_amount","ask_price","bid_price","bid_amount"]
[1730464416822,24.6784375,168.94,168.79,5.9244]
[1730464417227,23.776884,168.93,168.79,14.8113]
[1730464417543,26.93732919,168.83,168.79,14.8113]
[1730464418036,26.93732919,168.81,168.77,6.3879]
[1730464418357,26.93732919,168.78,168.73,14.8165]
[1730464418510,26.93732919,168.77,168.72,33.40712919]
[1730464418710,26.93732919,168.76,168.71,26.93732919]
[1730464419015,26.93732919,168.78,168.72,26.93732919]
[1730464419340,26.93732919,168.78,168.73,26.93732919]
[1730464419934,26.93732919,168.8,168.75,26.93732919]
[1730464420232,26.93732919,168.83,168.78,26.93732919]
[1730464420431,26.93732919,168.82,168.77,26.93732919]
[1730464420749,26.93732919,168.81,168.76,26.93732919]
[1730464420916,26.93732919,168.82,168.77,26.93732919]
[1730464421117,26.93732919,168.83,168.78,26.93732919]
[1730464421414,26.93732919,168.82,168.76,26.93732919]
[1730464421615,26.93732919,168.83,168.78,26.93732919]
[1730464421810,26.93732919,168.82,168.77,26.93732919]
[1730464422535,26.93732919,168.82,168.78,5.9248]
[1730464423043,26.93732919,168.79,168.75,14.8148]
[1730464423218,26.93732919,168.81,168.76,26.93732919]
[1730464423523,26.93732919,168.82,168.77,26.93732919]
[1730464423842,26.93732919,168.83,168.78,26.93732919]
[1730464424021,26.93732919,168.81,168.75,41.75212919]
[1730464424220,26.93732919,168.8,168.75,20.7407]
[1730464424435,26.93732919,168.8,168.75,47.67802919]
[1730464424812,26.93732919,168.77,168.75,14.8148]
[1730464425031,26.93732919,168.79,168.75,20.7407]
[1730464425235,26.93732919,168.81,168.76,26.93732919]
[1730464425448,26.93732919,168.82,168.76,26.93732919]
[1730464425613,26.93732919,168.83,168.77,26.93732919]
[1730464425922,26.93732919,168.82,168.77,26.93732919]
[1730464426526,26.93732919,168.82,168.78,20.7369]
[1730464426836,26.93732919,168.83,168.78,20.7369]
[1730464427035,32.85922919,168.87,168.81,26.93732919]
[1730464427345,26.93732919,168.86,168.81,26.93732919]
[1730464427524,26.93732919,168.84,168.79,6.6447]
[1730464427835,26.93732919,168.85,168.79,33.58202919]
[1730464428052,26.93732919,168.85,168.8,26.93732919]
[1730464428344,26.93732919,168.82,168.78,14.8121]
[1730464428530,26.93732919,168.81,168.78,14.8121]
[1730464429061,26.93732919,168.82,168.78,14.8121]
[1730464429933,32.86062919,168.83,168.78,14.8121]
[1730464430131,26.93732919,168.82,168.78,14.8121]
[1730464430739,32.86062919,168.83,168.78,14.8121]
[1730464430935,32.86062919,168.83,168.78,20.7369]
[1730464431117,5.9233,168.83,168.78,47.67422919]
[1730464431321,32.86062919,168.83,168.78,47.67422919]
[1730464431539,26.93732919,168.79,168.74,14.8148]
[1730464431848,26.93732919,168.77,168.72,26.93732919]
[1730464432021,26.93732919,168.78,168.72,26.93732919]
[1730464432422,26.93732919,168.75,168.71,5.9273]
[1730464432618,26.93732919,168.72,168.69,6.16736482]
[1730464432839,26.93732919,168.7,168.64,20.7538]
[1730464433047,23.776884,168.79,168.62,5.9304]
[1730464433235,23.776884,168.75,168.61,14.827]
[1730464433422,23.776884,168.75,168.62,6.16653687]
[1730464433623,26.93732919,168.65,168.62,6.16653687]
[1730464433920,26.93732919,168.66,168.61,20.7578]
[1730464434134,26.93732919,168.65,168.61,20.7578]
[1730464434337,26.93732919,168.62,168.59,6.16678819]
[1730464434554,26.93732919,168.72,168.59,6.16678819]
[1730464434555,26.93732919,168.6,168.59,6.16678819]
[1730464434729,26.93732919,168.6,168.5,32.87202919]
[1730464434931,26.93732919,168.55,168.52,6.1666291]
[1730464435133,26.93732919,168.54,168.52,6.1666291]
[1730464435339,26.93732919,168.54,168.5,20.7714]
[1730464435644,26.93732919,168.56,168.5,53.87509109]
[1730464435848,26.93732919,168.57,168.52,26.93732919]
[1730464436142,26.93732919,168.54,168.51,5.9343]
[1730464436359,26.93732919,168.52,168.5,21.0030619]
[1730464436667,26.93732919,168.54,168.5,20.7714]
[1730464437023,26.93732919,168.59,168.53,26.93732919]
[1730464437231,26.93732919,168.61,168.55,26.93732919]
[1730464437440,26.93732919,168.61,168.56,26.93732919]
[1730464437631,26.93732919,168.61,168.55,26.93732919]
[1730464437848,26.93732919,168.59,168.54,26.93732919]
[1730464438042,26.93732919,168.6,168.54,32.87032919]
[1730464438251,14.8223,168.67,168.56,26.93732919]
[1730464438252,26.93732919,168.62,168.56,26.93732919]
[1730464438645,26.93732919,168.6,168.55,26.93732919]
[1730464438956,26.93732919,168.59,168.54,20.7662]
[1730464439252,26.93732919,168.62,168.57,26.93732919]
[1730464439428,26.93732919,168.61,168.55,26.93732919]
[1730464439628,26.93732919,168.61,168.55,32.86992919]
[1730464439833,26.93732919,168.6,168.55,32.86992919]
[1730464440033,26.93732919,168.61,168.55,47.70222919]
[1730464440234,26.93732919,168.64,168.59,26.93732919]
[1730464440430,26.93732919,168.65,168.6,26.93732919]
[1730464440667,26.93732919,168.64,168.59,26.93732919]
[1730464440953,26.93732919,168.64,168.58,26.93732919]
[1730464441158,20.9316,168.71,168.62,26.93732919]
[1730464441159,26.93732919,168.67,168.62,26.93732919]
[1730464441341,6.1128,168.71,168.56,26.93732919]
[1730464441342,26.93732919,168.69,168.64,26.93732919]
[1730464441534,26.93732919,168.67,168.56,26.93732919]
[1730464441735,26.93732919,168.66,168.61,26.93732919]
[1730464442167,22.2782,168.7,168.63,26.93732919]
[1730464442335,26.93732919,168.71,168.65,26.93732919]
[1730464442656,26.93732919,168.69,168.64,26.93732919]
[1730464442878,5.9262,168.74,168.65,26.93732919]
[1730464442879,26.93732919,168.7,168.65,26.93732919]
[1730464443035,26.93732919,168.73,168.68,26.93732919]
[1730464443238,26.93732919,168.76,168.71,26.93732919]
[1730464443544,26.93732919,168.75,168.69,26.93732919]
[1730464443733,26.93732919,168.74,168.69,5.928]
[1730464444163,26.93732919,168.73,168.69,5.928]
[1730464444337,26.93732919,168.71,168.67,14.8211]
[1730464444537,26.93732919,168.72,168.67,20.7498]
[1730464444962,26.93732919,168.71,168.67,14.8211]
[1730464445165,26.93732919,168.72,168.67,41.75842919]
[1730464445345,26.93732919,168.71,168.66,26.93732919]
[1730464445659,26.93732919,168.73,168.67,26.93732919]
[1730464445842,26.93732919,168.73,168.68,26.93732919]
[1730464446443,32.86352919,168.74,168.68,26.93732919]
[1730464446758,5.9262,168.74,168.64,26.93732919]
[1730464446962,26.93732919,168.72,168.67,26.93732919]
[1730464447255,26.93732919,168.72,168.61,29.6542]
[1730464447256,26.93732919,168.71,168.66,26.93732919]
[1730464447458,26.93732919,168.71,168.65,26.93732919]
[1730464447666,26.93732919,168.7,168.59,20.7603]
[1730464447857,5.928,168.69,168.64,26.93732919]
[1730464448061,5.928,168.69,168.66,26.93732919]
[1730464448238,5.928,168.69,168.63,5.9301]
[1730464448239,32.86532919,168.69,168.63,14.8253]
[1730464448435,5.928,168.69,168.64,26.93732919]
[1730464448637,32.86532919,168.69,168.64,26.93732919]
[1730464448862,23.776884,168.72,168.59,14.8283]
[1730464449062,23.776884,168.72,168.66,26.93732919]
[1730464449257,26.93732919,168.71,168.66,26.93732919]
[1730464449561,50.71421319,168.72,168.66,26.93732919]
[1730464449747,29.703084,168.74,168.7,26.93732919]
[1730464449948,56.64041319,168.74,168.68,26.93732919]
[1730464450141,32.86352919,168.74,168.68,26.93732919]
[1730464450463,26.93732919,168.76,168.71,26.93732919]
[1730464450761,32.86322919,168.76,168.7,26.93732919]
[1730464450959,26.93732919,168.75,168.7,26.93732919]
[1730464451165,32.86322919,168.76,168.7,26.93732919]
[1730464451359,26.93732919,168.75,168.7,26.93732919]
[1730464451538,26.93732919,168.75,168.69,26.93732919]
[1730464451743,5.9262,168.74,168.71,26.93732919]
[1730464452046,5.9262,168.74,168.69,26.93732919]
[1730464452259,26.93732919,168.72,168.67,26.93732919]
[1730464452560,5.9262,168.74,168.69,26.93732919]
[1730464452762,5.9262,168.74,168.71,26.93732919]
[1730464452958,26.93732919,168.8,168.73,26.93732919]
[1730464453271,5.9245,168.79,168.75,26.93732919]
[1730464453567,5.9245,168.79,168.65,23.776884]
[1730464453568,26.93732919,168.78,168.73,26.93732919]
[1730464453747,26.93732919,168.79,168.74,26.93732919]
[1730464454277,26.93732919,168.8,168.74,26.93732919]
[1730464454564,26.93732919,168.81,168.76,26.93732919]
[1730464454763,50.71421319,168.8,168.74,26.93732919]
[1730464454971,26.93732919,168.8,168.74,26.93732919]
[1730464455357,5.9245,168.79,168.75,26.93732919]
[1730464455795,5.9245,168.79,168.76,26.93732919]
[1730464456262,32.86182919,168.79,168.74,26.93732919]
[1730464456464,32.86182919,168.79,168.73,32.86392919]
[1730464456651,32.86182919,168.79,168.74,26.93732919]
[1730464457458,26.93732919,168.78,168.73,26.93732919]
[1730464457875,32.86072919,168.82,168.77,26.93732919]
[1730464458254,5.9231,168.83,168.79,26.93732919]
[1730464458463,26.93732919,168.84,168.79,26.93732919]
[1730464458960,26.93732919,168.83,168.77,26.93732919]
[1730464459273,50.3344,168.87,168.75,26.93732919]
[1730464459568,26.93732919,168.8,168.74,32.86352919]
[1730464459755,26.93732919,168.81,168.75,26.93732919]
[1730464459958,26.93732919,168.81,168.74,5.9262]
[1730464459959,26.93732919,168.81,168.76,26.93732919]
[1730464460158,26.93732919,168.8,168.75,26.93732919]
[1730464460357,26.93732919,168.82,168.77,26.93732919]
[1730464460661,50.71421319,168.82,168.77,26.93732919]
[1730464460863,50.71421319,168.82,168.76,26.93732919]
[1730464460864,26.93732919,168.81,168.76,26.93732919]
[1730464461172,26.93732919,168.78,168.73,26.93732919]
[1730464461469,26.93732919,168.75,168.7,26.93732919]
[1730464461669,26.93732919,168.76,168.7,26.93732919]
[1730464461990,26.93732919,168.75,168.7,26.93732919]
[1730464462579,5.9248,168.78,168.74,26.93732919]
[1730464462755,32.86212919,168.78,168.73,26.93732919]
[1730464463068,26.93732919,168.77,168.72,26.93732919]
[1730464463253,26.93732919,168.76,168.71,26.93732919]
[1730464463451,26.93732919,168.75,168.7,26.93732919]
[1730464463657,26.93732919,168.76,168.71,26.93732919]
[1730464464874,26.93732919,168.77,168.71,26.93732919]
[1730464465272,26.93732919,168.76,168.71,26.93732919]
[1730464465763,26.93732919,168.75,168.7,26.93732919]
[1730464467177,5.9262,168.74,168.7,26.93732919]
[1730464467365,26.93732919,168.78,168.72,26.93732919]
[1730464467559,26.93732919,168.77,168.72,26.93732919]
[1730464469081,26.93732919,168.78,168.72,26.93732919]
[1730464469269,5.9245,168.79,168.74,26.93732919]
[1730464469456,5.9245,168.79,168.75,26.93732919]
[1730464469666,32.86182919,168.79,168.73,26.93732919]
[1730464470357,32.86182919,168.79,168.72,26.93732919]
[1730464470358,26.93732919,168.77,168.72,26.93732919]
[1730464470561,26.93732919,168.78,168.72,26.93732919]
[1730464471282,5.9252,168.77,168.73,26.93732919]
[1730464471577,32.86222919,168.78,168.73,26.93732919]
[1730464471770,32.86222919,168.78,168.68,29.6419]
[1730464471771,32.86222919,168.78,168.72,26.93732919]
[1730464472553,26.93732919,168.76,168.7,26.93732919]
[1730464472876,5.9249,168.78,168.69,26.93732919]
[1730464472877,26.93732919,168.75,168.69,26.93732919]
[1730464473055,26.93732919,168.72,168.67,26.93732919]
[1730464473257,26.93732919,168.68,168.63,47.69252919]
[1730464473561,26.93732919,168.7,168.64,26.93732919]
[1730464473765,26.93732919,168.69,168.63,47.69252919]
[1730464474279,26.93732919,168.67,168.63,14.8251]
[1730464474476,26.93732919,168.69,168.63,47.69252919]
[1730464474771,26.93732919,168.66,168.63,14.8251]
[1730464474981,26.93732919,168.64,168.58,26.93732919]
[1730464475153,5.931,168.61,168.56,26.93732919]
[1730464475550,32.86832919,168.61,168.56,26.93732919]
[1730464475874,26.93732919,168.6,168.54,26.93732919]
[1730464476069,26.93732919,168.59,168.53,48.43762919]
[1730464476282,26.93732919,168.55,168.5,26.93732919]
[1730464476464,26.93732919,168.53,168.48,26.93732919]
[1730464476662,26.93732919,168.51,168.46,26.93732919]
[1730464477067,26.93732919,168.51,168.45,41.77792919]
[1730464477277,26.93732919,168.49,168.45,14.8406]
[1730464477480,26.93732919,168.49,168.44,26.93732919]
[1730464477652,26.93732919,168.49,168.43,27.55324899]
[1730464477974,26.93732919,168.48,168.43,0.6159198]
[1730464478182,26.93732919,168.47,168.43,0.6159198]
[1730464478407,5.9344,168.51,168.43,0.6159198]
[1730464478408,26.93732919,168.45,168.43,0.6159198]
[1730464478895,26.93732919,168.44,168.43,0.6159198]
[1730464479868,26.93732919,168.46,168.43,0.6159198]
[1730464480173,26.93732919,168.45,168.43,0.6159198]
[1730464480372,26.93732919,168.48,168.43,27.55324899]
[1730464480570,26.93732919,168.46,168.43,0.6159198]
[1730464480773,26.93732919,168.47,168.43,0.6159198]
[1730464481085,57.61762817,168.56,168.43,0.6159198]
[1730464481086,26.93732919,168.49,168.44,26.93732919]
[1730464481383,26.93732919,168.49,168.44,32.87412919]
[1730464481577,26.93732919,168.49,168.44,26.93732919]
[1730464481776,26.93732919,168.49,168.43,48.33324899]
[1730464481975,26.93732919,168.49,168.44,26.93732919]
[1730464482390,26.93732919,168.48,168.43,48.33324899]
[1730464482699,26.93732919,168.48,168.43,42.39614899]
[1730464483090,26.93732919,168.47,168.43,15.4588198]
[1730464483604,26.93732919,168.48,168.43,48.33324899]
[1730464483981,26.93732919,168.49,168.44,26.93732919]
[1730464484288,26.93732919,168.51,168.46,26.93732919]
[1730464484893,26.93732919,168.5,168.44,26.93732919]
[1730464485085,26.93732919,168.48,168.43,48.33324899]
[1730464485301,26.93732919,168.52,168.46,26.93732919]
[1730464485485,26.93732919,168.52,168.47,26.93732919]
[1730464485803,26.93732919,168.54,168.49,26.93732919]
[1730464485998,16.22057807,168.59,168.49,26.93732919]
[1730464485999,26.93732919,168.55,168.49,26.93732919]
[1730464486205,26.93732919,168.54,168.48,26.93732919]
[1730464486394,26.93732919,168.55,168.5,26.93732919]
[1730464486599,26.93732919,168.55,168.46,20.7763]
[1730464486600,26.93732919,168.55,168.49,26.93732919]
[1730464486900,5.9319,168.58,168.52,26.93732919]
[1730464486901,26.93732919,168.58,168.52,26.93732919]
[1730464487200,26.93732919,168.58,168.53,26.93732919]
[1730464487399,32.86882919,168.59,168.54,26.93732919]
[1730464488101,26.93732919,168.58,168.53,26.93732919]
[1730464488409,5.9315,168.59,168.51,14.8358]
[1730464488410,26.93732919,168.56,168.51,41.77312919]
[1730464488608,26.93732919,168.56,168.51,47.70742919]
[1730464488806,26.93732919,168.57,168.52,26.93732919]
[1730464489886,26.93732919,168.58,168.52,32.87132919]
[1730464490211,26.93732919,168.6,168.54,26.93732919]
[1730464490394,26.93732919,168.59,168.54,26.93732919]
[1730464490710,26.93732919,168.59,168.53,26.93732919]
[1730464490898,26.93732919,168.57,168.52,41.77232919]
[1730464492600,32.86972919,168.57,168.52,41.77232919]
[1730464492802,26.93732919,168.58,168.53,26.93732919]
[1730464493112,5.9319,168.58,168.54,26.93732919]
[1730464493292,5.9319,168.58,168.53,26.93732919]
[1730464493896,32.86922919,168.58,168.52,41.77232919]
[1730464494105,32.86922919,168.58,168.53,26.93732919]
[1730464494408,5.9319,168.58,168.55,26.93732919]
[1730464494606,5.9314,168.6,168.55,26.93732919]
[1730464495097,32.86872919,168.6,168.55,26.93732919]
[1730464495716,32.86872919,168.6,168.54,32.87052919]
[1730464496217,32.86872919,168.6,168.54,26.93732919]
[1730464496616,26.93732919,168.58,168.53,32.87092919]
[1730464496811,26.93732919,168.59,168.54,26.93732919]
[1730464497000,26.93732919,168.59,168.53,20.7677]
[1730464497001,5.9308,168.61,168.57,26.93732919]
[1730464497196,30.0,168.58,168.57,26.93732919]
[1730464497805,5.929,168.66,168.57,26.93732919]
[1730464498122,26.93732919,168.64,168.59,26.93732919]
[1730464498425,5.929,168.66,168.61,26.93732919]
[1730464498611,30.0,168.62,168.61,26.93732919]
[1730464498920,5.9299,168.64,168.6,26.93732919]
[1730464499296,5.9299,168.64,168.61,26.93732919]
[1730464499501,5.9299,168.64,168.59,5.9314]
[1730464499502,5.929,168.66,168.62,26.93732919]
[1730464500317,5.929,168.66,168.6,26.93732919]
[1730464500318,26.93732919,168.65,168.6,26.93732919]
[1730464500525,26.93732919,168.64,168.59,26.93732919]
[1730464500815,5.9308,168.61,168.58,26.93732919]
[1730464501032,5.9308,168.61,168.59,26.93732919]
[1730464501607,5.9301,168.63,168.59,26.93732919]
[1730464501816,5.9301,168.63,168.6,26.93732919]
[1730464502115,26.93732919,168.65,168.6,26.93732919]
[1730464502323,5.929,168.66,168.63,26.93732919]
[1730464502521,5.929,168.66,168.64,26.93732919]
[1730464502719,31.3341,168.69,168.61,26.93732919]
[1730464503019,26.93732919,168.67,168.62,26.93732919]
[1730464503225,26.93732919,168.65,168.6,26.93732919]
[1730464503427,26.93732919,168.66,168.61,26.93732919]
[1730464504998,47.68652919,168.68,168.62,26.93732919]
[1730464505517,26.93732919,168.63,168.57,26.93732919]
[1730464505720,26.93732919,168.62,168.57,26.93732919]
[1730464506021,26.93732919,168.64,168.59,26.93732919]
[1730464506222,26.93732919,168.67,168.62,26.93732919]
[1730464506429,56.57342919,168.72,168.56,26.93732919]
[1730464506430,32.86422919,168.72,168.66,26.93732919]
[1730464506607,26.93732919,168.7,168.65,26.93732919]
[1730464506813,26.93732919,168.69,168.64,26.93732919]
[1730464507207,5.9283,168.68,168.65,26.93732919]
[1730464508118,5.9281,168.69,168.66,26.93732919]
[1730464508314,5.9276,168.71,168.68,26.93732919]
[1730464508507,28.14030726,168.73,168.68,26.93732919]
[1730464508709,5.9268,168.73,168.69,26.93732919]
[1730464508906,32.86412919,168.73,168.68,26.93732919]
[1730464510643,32.86412919,168.73,168.62,26.93732919]
[1730464510644,26.93732919,168.69,168.62,26.93732919]
[1730464510842,26.93732919,168.65,168.6,26.93732919]
[1730464511134,26.93732919,168.66,168.62,26.93732919]
[1730464511316,5.9287,168.67,168.63,26.93732919]
[1730464511517,5.9287,168.67,168.65,26.93732919]
[1730464511910,5.928,168.69,168.65,26.93732919]
[1730464512220,32.86532919,168.69,168.64,26.93732919]
[1730464512417,26.93732919,168.67,168.62,26.93732919]
[1730464512637,26.93732919,168.65,168.61,26.93732919]
[1730464512933,26.93732919,168.65,168.6,26.93732919]
[1730464513137,1.02147681,168.8,168.64,26.93732919]
[1730464513325,6.94587681,168.8,168.76,26.93732919]
[1730464513527,5.9244,168.8,168.75,26.93732919]
[1730464513821,5.9244,168.8,168.76,26.93732919]
[1730464514015,5.9244,168.8,168.75,26.93732919]
[1730464514216,32.86172919,168.8,168.75,26.93732919]
[1730464514626,5.9244,168.8,168.75,26.93732919]
[1730464514850,23.776884,168.79,168.75,26.93732919]
[1730464515136,50.71421319,168.79,168.73,26.93732919]
[1730464515540,26.93732919,168.78,168.73,26.93732919]
[1730464515833,5.9244,168.8,168.75,26.93732919]
[1730464516037,5.9244,168.8,168.77,26.93732919]
[1730464516242,5.9244,168.8,168.75,26.93732919]
[1730464516735,32.86172919,168.8,168.75,26.93732919]
[1730464517231,5.9244,168.8,168.76,26.93732919]
[1730464518623,5.9244,168.8,168.75,26.93732919]
[1730464519030,50.71421319,168.79,168.73,26.93732919]
[1730464519233,50.71421319,168.77,168.71,26.93732919]
[1730464519437,26.93732919,168.77,168.71,26.93732919]
[1730464519816,23.276884,168.76,168.72,26.93732919]
[1730464520017,26.93732919,168.78,168.73,26.93732919]
[1730464520523,21.58203833,168.86,168.71,26.93732919]
[1730464520524,26.93732919,168.76,168.71,26.93732919]
[1730464520929,26.93732919,168.76,168.7,26.93732919]
[1730464521320,26.93732919,168.76,168.71,26.93732919]
[1730464521526,26.93732919,168.77,168.71,26.93732919]
[1730464521738,26.93732919,168.79,168.74,26.93732919]
[1730464521914,26.93732919,168.8,168.75,26.93732919]
[1730464522116,26.93732919,168.8,168.74,26.93732919]
[1730464522317,50.71421319,168.79,168.74,26.93732919]
[1730464522746,23.776884,168.79,168.75,26.93732919]
[1730464522930,5.9248,168.78,168.75,26.93732919]
[1730464523527,5.9245,168.79,168.76,26.93732919]
[1730464523846,32.86182919,168.79,168.73,26.93732919]
[1730464524019,32.86182919,168.79,168.71,14.818]
[1730464524020,5.9245,168.79,168.75,26.93732919]
[1730464524434,33.10636812,168.83,168.78,26.93732919]
[1730464524629,26.93732919,168.84,168.79,26.93732919]
[1730464524922,5.9234,168.82,168.78,26.93732919]
[1730464525422,26.93732919,168.8,168.75,26.93732919]
[1730464526144,26.93732919,168.81,168.76,26.93732919]
[1730464526527,32.86072919,168.82,168.77,26.93732919]
[1730464526725,6.16749929,168.86,168.81,26.93732919]
[1730464526942,5.921,168.89,168.85,26.93732919]
[1730464527125,5.921,168.89,168.86,26.93732919]
[1730464527324,5.921,168.89,168.85,26.93732919]
[1730464527531,5.921,168.89,168.86,26.93732919]
[1730464527941,6.1028834,168.9,168.86,26.93732919]
[1730464528145,33.04021259,168.9,168.85,26.93732919]
[1730464528335,26.93732919,168.88,168.83,26.93732919]
[1730464528538,26.93732919,168.87,168.82,26.93732919]
[1730464528741,26.93732919,168.88,168.83,26.93732919]
[1730464529039,5.9217,168.87,168.83,26.93732919]
[1730464529435,5.9217,168.87,168.84,26.93732919]
[1730464529638,27.11961259,168.9,168.85,26.93732919]
[1730464529943,5.9212,168.89,168.84,26.93732919]
[1730464530147,32.85852919,168.89,168.83,26.93732919]
[1730464530440,26.93732919,168.87,168.82,26.93732919]
[1730464530626,26.93732919,168.88,168.83,26.93732919]
[1730464531130,5.921,168.89,168.85,26.93732919]
[1730464531536,32.85832919,168.89,168.84,26.93732919]
[1730464531843,32.85832919,168.89,168.83,26.93732919]
[1730464532054,32.85882919,168.88,168.83,26.93732919]
[1730464532247,26.93732919,168.87,168.82,26.93732919]
[1730464532440,26.93732919,168.86,168.81,26.93732919]
[1730464532946,26.93732919,168.87,168.82,26.93732919]
[1730464533144,26.93732919,168.86,168.81,26.93732919]
[1730464533447,26.93732919,168.82,168.77,26.93732919]
[1730464533755,23.776884,168.87,168.74,27.1582]
[1730464533756,26.93732919,168.79,168.74,33.35432919]
[1730464534254,26.93732919,168.78,168.74,6.417]
[1730464534423,26.93732919,168.78,168.73,26.93732919]
[1730464534835,26.93732919,168.77,168.72,26.93732919]
[1730464535348,26.93732919,168.73,168.68,26.93732919]
[1730464535650,46.93732919,168.75,168.7,26.93732919]
[1730464535853,20.0,168.75,168.71,26.93732919]
[1730464536034,46.93732919,168.75,168.7,26.93732919]
[1730464536234,46.93732919,168.75,168.69,26.93732919]
[1730464536434,25.9259,168.75,168.71,26.93732919]
[1730464536731,52.86322919,168.75,168.7,26.93732919]
[1730464537459,52.86322919,168.75,168.69,26.93732919]
[1730464538156,26.93732919,168.74,168.69,26.93732919]
[1730464538351,46.93732919,168.75,168.7,26.93732919]
[1730464538556,5.9262,168.74,168.7,26.93732919]
[1730464538855,32.86352919,168.74,168.69,26.93732919]
[1730464539953,5.9262,168.74,168.7,26.93732919]
[1730464540160,5.9259,168.75,168.71,26.93732919]
[1730464540350,5.9259,168.75,168.72,26.93732919]
[1730464540852,5.9259,168.75,168.71,26.93732919]
[1730464541154,32.86322919,168.75,168.7,26.93732919]
[1730464541449,26.93732919,168.74,168.69,32.86502919]
[1730464541641,26.93732919,168.74,168.67,16.1425]
[1730464541642,26.93732919,168.7,168.65,33.07002919]
[1730464541841,20.0,168.71,168.65,33.07002919]
[1730464541842,46.93732919,168.69,168.65,6.1327]
[1730464542150,5.9287,168.68,168.63,26.93732919]
[1730464542337,20.0,168.69,168.66,26.93732919]
[1730464542850,5.9281,168.69,168.65,26.93732919]
[1730464543226,26.93732919,168.71,168.66,26.93732919]
[1730464543426,26.93732919,168.75,168.7,26.93732919]
[1730464543649,26.93732919,168.76,168.7,26.93732919]
[1730464543852,32.86252919,168.77,168.72,26.93732919]
[1730464544061,26.93732919,168.76,168.71,26.93732919]
[1730464544232,5.9257,168.76,168.72,26.93732919]
[1730464544750,32.86302919,168.76,168.71,26.93732919]
[1730464545334,26.93732919,168.75,168.7,26.93732919]
[1730464545753,32.86302919,168.76,168.71,26.93732919]
[1730464546161,26.93732919,168.81,168.75,26.93732919]
[1730464546453,26.93732919,168.81,168.76,26.93732919]
[1730464547234,5.9241,168.8,168.75,26.93732919]
[1730464547540,20.0,168.8,168.76,26.93732919]
[1730464548853,26.93732919,168.84,168.79,26.93732919]
[1730464549060,20.0,168.83,168.79,26.93732919]
[1730464549267,46.93732919,168.83,168.78,26.93732919]
[1730464549552,26.93732919,168.85,168.8,26.93732919]
[1730464550057,5.922,168.86,168.82,26.93732919]
[1730464550450,5.922,168.86,168.76,20.7392]
[1730464550451,26.93732919,168.85,168.79,26.93732919]
[1730464550762,26.93732919,168.83,168.78,26.93732919]
[1730464551263,20.0,168.85,168.81,26.93732919]
[1730464551755,26.93732919,168.87,168.82,26.93732919]
[1730464551956,20.0,168.87,168.83,26.93732919]
[1730464552850,20.0,168.87,168.84,26.93732919]
[1730464553061,20.0,168.87,168.83,26.93732919]
[1730464554438,52.85902919,168.87,168.82,26.93732919]
[1730464554959,52.85902919,168.87,168.82,32.86072919]
[1730464555163,26.93732919,168.86,168.81,26.93732919]
[1730464556565,26.93732919,168.85,168.81,26.93732919]
[1730464557056,26.93732919,168.84,168.79,26.93732919]
[1730464557568,26.93732919,168.83,168.78,26.93732919]
[1730464558564,26.93732919,168.79,168.74,26.93732919]
[1730464558740,26.93732919,168.78,168.73,26.93732919]
[1730464558943,26.93732919,168.8,168.75,26.93732919]
[1730464559140,26.93732919,168.76,168.71,42.88332919]
[1730464559346,26.93732919,168.77,168.72,26.93732919]
[1730464559541,26.93732919,168.76,168.71,26.93732919]
[1730464560143,26.93732919,168.8,168.66,16.0764]
[1730464560144,26.93732919,168.72,168.67,33.11421723]
[1730464560379,26.93732919,168.71,168.66,33.14262919]
[1730464560544,26.93732919,168.73,168.68,26.93732919]
[1730464561078,26.93732919,168.73,168.66,6.2053]
[1730464561079,26.93732919,168.72,168.67,26.93732919]
[1730464561282,26.93732919,168.7,168.65,26.93732919]
[1730464561462,26.93732919,168.7,168.64,26.93732919]
[1730464561779,26.93732919,168.7,168.65,26.93732919]
[1730464561952,26.93732919,168.72,168.67,26.93732919]
[1730464562946,26.93732919,168.68,168.63,41.76262919]
[1730464563167,26.93732919,168.69,168.64,26.93732919]
[1730464563353,26.93732919,168.75,168.64,41.76172919]
[1730464563672,26.93732919,168.75,168.69,26.93732919]
[1730464564573,26.93732919,168.73,168.68,26.93732919]
[1730464564785,26.93732919,168.7,168.65,41.76082919]
[1730464565444,26.93732919,168.71,168.65,41.76082919]
[1730464565644,26.93732919,168.7,168.65,41.76082919]
[1730464565842,32.86502919,168.7,168.65,41.76082919]
[1730464566456,5.9277,168.7,168.65,41.76082919]
[1730464566667,5.9266,168.73,168.69,26.93732919]
[1730464566971,5.9266,168.73,168.7,26.93732919]
[1730464567345,5.9266,168.73,168.65,20.7529]
[1730464567346,5.9266,168.73,168.69,26.93732919]
[1730464567777,26.93732919,168.75,168.7,26.93732919]
[1730464568276,32.86252919,168.77,168.72,26.93732919]
[1730464568572,5.9252,168.77,168.74,26.93732919]
[1730464568761,5.9248,168.79,168.75,26.93732919]
[1730464568974,5.9242,168.8,168.76,26.93732919]
[1730464569267,5.9242,168.8,168.72,26.93732919]